bitfinex/quotes_BTCUSD_20250316
["timestamp","ask_amount","ask_price","bid_price","bid_amount"]
[1742150775393,0.011904,84005.0,84000.0,0.202378]
[1742150775619,0.190482,83998.0,83992.0,0.190494]
[1742150775840,0.011905,83996.0,83990.0,0.011906]
[1742150776055,0.202394,83995.0,83988.0,0.190502]
[1742150776234,0.011907,83979.0,83975.0,0.0468]
[1742150776443,0.011908,83977.0,83975.0,0.00041162]
[1742150776662,0.191523,83980.0,83976.0,0.011908]
[1742150776663,0.001,83980.0,83976.0,0.011908]
[1742150776860,0.001,83980.0,83975.0,0.19094362]
[1742150776989,0.191523,83980.0,83975.0,0.19094362]
[1742150777455,0.190526,83978.0,83975.0,0.00041162]
[1742150777677,0.202438,83977.0,83975.0,0.00041162]
[1742150778019,0.202438,83977.0,83972.0,0.20166308]
[1742150778223,0.20284903,83977.0,83972.0,0.20166308]
[1742150778787,0.00041103,83977.0,83976.0,0.202438]
[1742150778940,0.00041103,83977.0,83974.0,0.011908]
[1742150779939,0.01907656,83977.0,83976.0,0.002]
[1742150780529,0.01907656,83977.0,83976.0,0.013908]
[1742150780776,0.02289054,83977.0,83976.0,0.013908]
[1742150781363,0.02289054,83977.0,83976.0,0.002]
[1742150781563,0.02289054,83977.0,83975.0,0.202439]
[1742150781854,0.02289054,83977.0,83976.0,0.002]
[1742150781855,0.21341854,83977.0,83976.0,0.002]
[1742150782262,0.02289054,83977.0,83976.0,0.013908]
[1742150782470,0.02289054,83977.0,83976.0,0.202438]
[1742150782896,0.01907656,83977.0,83976.0,0.202438]
[1742150783101,0.00041103,83977.0,83976.0,0.002]
[1742150783261,0.00422561,83977.0,83976.0,0.002]
[1742150784526,0.00422561,83977.0,83976.0,0.003]
[1742150784675,0.01613361,83977.0,83976.0,0.003]
[1742150785708,0.011908,83973.0,83972.0,0.0001696]
[1742150786087,0.01572118,83973.0,83972.0,0.0001696]
[1742150786571,0.22492542,83973.0,83972.0,0.0001696]
[1742150787528,0.20625818,83973.0,83972.0,0.0001696]
[1742150787726,0.20625818,83973.0,83972.0,0.0011696]
[1742150787905,2.403e-05,83966.0,83962.0,0.01191]
[1742150788806,0.00381318,83965.0,83962.0,0.01191]
[1742150789343,0.00381318,83965.0,83962.0,0.20547]
[1742150789897,0.00381318,83965.0,83962.0,0.20247]
[1742150790291,0.00381318,83965.0,83962.0,0.003]
[1742150790499,0.01572218,83965.0,83962.0,0.003]
[1742150790703,0.19436918,83965.0,83962.0,0.003]
[1742150790983,0.00381318,83965.0,83962.0,0.193561]
[1742150791202,0.19436918,83965.0,83962.0,0.003]
[1742150791554,0.19436918,83965.0,83960.0,0.202475]
[1742150791760,0.00381318,83965.0,83962.0,0.003]
[1742150791938,0.00381318,83965.0,83963.0,0.190558]
[1742150792367,0.00381318,83965.0,83962.0,0.01491]
[1742150792569,0.00381318,83965.0,83962.0,0.19056]
[1742150792964,0.00381318,83965.0,83962.0,0.1907296]
[1742150793230,0.01191,83963.0,83962.0,0.0001696]
[1742150793582,0.01570774,83963.0,83962.0,0.0001696]
[1742150794893,0.01570774,83963.0,83962.0,0.0031696]
[1742150795340,0.01570774,83963.0,83962.0,0.0001696]
[1742150795569,0.01570774,83963.0,83962.0,0.0021696]
[1742150795765,0.09280774,83963.0,83962.0,0.0021696]
[1742150796195,0.09400196,83963.0,83962.0,0.0021696]
[1742150796579,0.01690196,83963.0,83962.0,0.0021696]
[1742150797002,0.02861725,83963.0,83962.0,0.0021696]
[1742150799303,0.02861725,83963.0,83962.0,0.0001696]
[1742150799704,0.16621725,83963.0,83962.0,0.0001696]
[1742150799908,0.16621725,83963.0,83951.0,0.0008]
[1742150799909,0.3771,83953.0,83951.0,1e-07]
[1742150800110,1.04969022,83952.0,83951.0,1e-07]
[1742150800289,1.10227904,83952.0,83951.0,1e-07]
[1742150800490,1.09727904,83952.0,83951.0,1e-07]
[1742150800687,1.23287904,83952.0,83951.0,1e-07]
[1742150801093,1.18287924,83952.0,83951.0,1e-07]
[1742150801298,0.202564,83924.0,83918.0,0.011916]
[1742150801479,0.202564,83924.0,83918.0,0.202576]
[1742150801681,0.00375685,83923.0,83918.0,0.202576]
[1742150801903,0.00375685,83923.0,83919.0,0.202573]
[1742150802262,0.00375685,83923.0,83918.0,0.202576]
[1742150802437,0.011915,83925.0,83918.0,0.2026988]
[1742150802638,0.00375158,83922.0,83918.0,0.2026988]
[1742150802811,0.011915,83925.0,83918.0,0.2026988]
[1742150803234,0.00375158,83924.0,83921.0,0.011915]
[1742150803453,0.00375158,83924.0,83923.0,0.011915]
[1742150803626,0.202554,83928.0,83923.0,0.202563]
[1742150803946,0.190635,83930.0,83925.0,0.202559]
[1742150804329,0.01190143,83940.0,83925.0,0.202559]
[1742150804330,0.00374875,83929.0,83928.0,0.190639]
[1742150804514,0.00374875,83929.0,83928.0,0.202553]
[1742150804730,0.00374852,83929.0,83928.0,0.202553]
[1742150804936,0.202546,83932.0,83927.0,0.083]
[1742150805254,0.011915,83926.0,83925.0,0.002]
[1742150805453,0.011915,83926.0,83921.0,0.01454085]
[1742150806041,0.202568,83922.0,83921.0,0.01454085]
[1742150806214,0.202568,83922.0,83917.0,0.20520485]
[1742150806420,0.011916,83919.0,83918.0,0.0002924]
[1742150806938,0.01311022,83919.0,83918.0,0.0002924]
[1742150807151,0.02909687,83919.0,83918.0,0.0002924]
[1742150807356,0.02790265,83919.0,83918.0,0.0002924]
[1742150807567,0.0156649,83919.0,83918.0,0.0002924]
[1742150807780,0.01685912,83919.0,83918.0,0.0002924]
[1742150808192,0.0037489,83919.0,83918.0,0.0002924]
[1742150808393,0.0156649,83919.0,83918.0,0.0002924]
[1742150810362,0.01685912,83919.0,83918.0,0.0002924]
[1742150811817,0.43245912,83919.0,83918.0,0.0002924]
[1742150812019,0.4312649,83919.0,83918.0,0.0002924]
[1742150814711,0.4193489,83919.0,83918.0,0.0122084]
[1742150815127,0.4193489,83919.0,83918.0,0.0047816]
[1742150815329,0.4193489,83919.0,83918.0,0.01932245]
[1742150815330,0.0037489,83919.0,83918.0,0.01932245]
[1742150815732,0.202534,83936.0,83931.0,0.190631]
[1742150816048,0.00308452,83935.0,83931.0,0.011914]
[1742150816447,0.011913,83937.0,83931.0,0.190631]
[1742150816448,0.202532,83937.0,83931.0,0.190631]
[1742150816622,0.20562552,83934.0,83929.0,0.190636]
[1742150816825,0.190629,83933.0,83929.0,0.190636]
[1742150817382,0.00309414,83932.0,83929.0,0.190636]
[1742150817984,0.00309414,83931.0,83928.0,0.011914]
[1742150818548,0.011915,83927.0,83919.0,0.19066]
[1742150818752,0.202567,83923.0,83919.0,0.190659]
[1742150818967,0.00309414,83922.0,83919.0,0.190658]
[1742150819168,0.00309414,83922.0,83917.0,0.0001697]
[1742150819169,0.1909944,83922.0,83917.0,0.0001697]
[1742150819373,0.00309414,83921.0,83918.0,0.202576]
[1742150819565,0.00309414,83921.0,83920.0,0.011916]
[1742150819951,0.00309414,83921.0,83918.0,0.19066]
[1742150820484,0.00309414,83921.0,83920.0,0.011916]
[1742150821694,0.00309414,83921.0,83919.0,0.202574]
[1742150822507,0.00309414,83921.0,83920.0,0.002]
[1742150822912,0.01500914,83921.0,83920.0,0.002]
[1742150823143,0.202578,83918.0,83917.0,0.00029273]
[1742150823714,0.20567214,83918.0,83917.0,0.00029273]
[1742150824287,0.22435128,83918.0,83917.0,0.00029273]
[1742150825429,0.20567214,83918.0,83917.0,0.00029273]
[1742150826323,0.20567214,83918.0,83917.0,0.00229273]
[1742150826527,0.20686636,83918.0,83917.0,0.00229273]
[1742150826985,0.20567214,83918.0,83917.0,0.00229273]
[1742150828493,0.20567214,83918.0,83917.0,0.00029273]
[1742150828654,0.20767214,83918.0,83917.0,0.00029273]
[1742150829257,0.20567214,83918.0,83917.0,0.00029273]
[1742150829459,0.62127214,83918.0,83917.0,0.00029273]
[1742150830657,0.63324579,83918.0,83917.0,0.00029273]
[1742150831962,1.06994579,83918.0,83917.0,7.3e-07]
[1742150832141,1.11994559,83918.0,83917.0,7.3e-07]
[1742150832348,1.11494559,83918.0,83917.0,7.3e-07]
[1742150832543,1.11994559,83918.0,83917.0,7.3e-07]
[1742150833233,1.06494579,83918.0,83917.0,7.3e-07]
[1742150833388,1.06494579,83918.0,83895.0,0.0125695]
[1742150833389,0.190709,83898.0,83895.0,0.01077023]
[1742150833588,0.00307689,83897.0,83895.0,0.01089379]
[1742150833808,0.011919,83896.0,83895.0,0.01089379]
[1742150834186,0.01619011,83896.0,83895.0,0.01089379]
[1742150834388,0.01499589,83896.0,83895.0,0.01089379]
[1742150835110,0.01499589,83896.0,83895.0,0.01189379]
[1742150835611,0.02675164,83896.0,83895.0,0.01089379]
[1742150835976,0.02675164,83896.0,83895.0,0.01289379]
[1742150836380,0.02675164,83896.0,83895.0,0.01089379]
[1742150836784,0.01499589,83896.0,83895.0,0.01089379]
[1742150841126,0.43159589,83896.0,83895.0,0.01089379]
[1742150842767,0.41967689,83896.0,83895.0,0.01089379]
[1742150842989,0.62230789,83896.0,83895.0,0.01089379]
[1742150843802,0.41967689,83896.0,83895.0,0.20160779]
[1742150843999,0.00307689,83896.0,83895.0,0.01089379]
[1742150844326,0.011919,83897.0,83895.0,0.01106309]
[1742150844670,0.00338912,83896.0,83895.0,0.01106309]
[1742150844857,0.00338912,83896.0,83895.0,0.02298209]
[1742150845235,0.02207355,83896.0,83895.0,0.02298209]
[1742150845435,0.01902303,83896.0,83895.0,0.03752294]
[1742150845639,0.01902303,83896.0,83895.0,0.16732294]
[1742150846008,0.01902303,83896.0,83895.0,0.16832294]
[1742150846208,0.01902303,83896.0,83895.0,0.16951483]
[1742150846422,0.0003386,83896.0,83895.0,0.16832294]
[1742150846916,0.0003386,83896.0,83895.0,1.66832294]
[1742150847288,0.0003386,83896.0,83895.0,1.66732294]
[1742150848089,0.0003386,83896.0,83895.0,1.66932294]
[1742150848838,0.01402064,83906.0,83905.0,0.02645885]
[1742150849034,0.0122544,83921.0,83914.0,0.011916]
[1742150849244,0.011916,83917.0,83913.0,0.0823]
[1742150849442,0.20258,83917.0,83912.0,0.202591]
[1742150849639,0.00306722,83916.0,83912.0,0.202591]
[1742150849858,0.00306722,83916.0,83913.0,0.202588]
[1742150850116,0.00306722,83916.0,83913.0,0.190671]
[1742150850354,0.011917,83913.0,83909.0,0.01454085]
[1742150850519,0.190689,83906.0,83900.0,0.190702]
[1742150850776,0.202598,83910.0,83905.0,0.190691]
[1742150850974,0.190663,83918.0,83905.0,0.190691]
[1742150850975,0.011916,83915.0,83909.0,0.011917]
[1742150851186,0.190675,83913.0,83908.0,0.011917]
[1742150851360,0.202592,83913.0,83908.0,0.011917]
[1742150852751,0.203592,83913.0,83908.0,0.011917]
[1742150853337,0.0186811,83912.0,83908.0,0.011917]
[1742150853891,0.011917,83910.0,83905.0,0.202608]
[1742150854154,0.202599,83910.0,83905.0,0.202608]
[1742150854334,0.202602,83909.0,83905.0,0.01454085]
[1742150854985,0.011917,83910.0,83905.0,0.21714885]
[1742150855212,0.190679,83911.0,83906.0,0.202606]
[1742150856192,0.0186811,83912.0,83909.0,0.190682]
[1742150856397,0.0186811,83912.0,83911.0,0.011917]
[1742150857392,0.02174832,83912.0,83911.0,0.011917]
[1742150857596,0.02174832,83912.0,83911.0,0.010917]
[1742150858373,0.02174832,83912.0,83911.0,0.012917]
[1742150858550,0.0186811,83912.0,83911.0,0.012917]
[1742150859578,0.0186811,83912.0,83911.0,0.10462528]
[1742150860400,0.0186811,83912.0,83911.0,0.11916613]
[1742150861408,0.0186811,83912.0,83911.0,0.11716613]
[1742150861634,0.0186811,83912.0,83911.0,0.30224613]
[1742150861829,0.0003386,83913.0,83911.0,0.30224613]
[1742150861830,0.0003386,83913.0,83912.0,0.202592]
[1742150862352,0.0003386,83913.0,83912.0,1.702592]
[1742150863649,0.18354711,83926.0,83921.0,0.190654]
[1742150863852,0.4156,83949.0,83932.0,0.011914]
[1742150864051,0.011913,83941.0,83933.0,0.02645485]
[1742150864255,0.190616,83939.0,83933.0,0.01454085]
[1742150864455,0.00307987,83938.0,83935.0,0.190621]
[1742150864687,0.202523,83941.0,83936.0,0.202532]
[1742150864688,0.011913,83941.0,83936.0,0.202532]
[1742150864907,0.011912,83944.0,83938.0,0.011913]
[1742150865057,0.011912,83943.0,83938.0,0.011913]
[1742150865261,0.002,83941.0,83938.0,0.202528]
[1742150865492,0.002,83941.0,83939.0,0.190613]
[1742150866048,0.190623,83935.0,83925.0,0.190644]
[1742150866323,0.190629,83933.0,83925.0,0.202559]
[1742150866549,0.011913,83936.0,83928.0,0.011914]
[1742150866739,0.190626,83934.0,83929.0,0.202549]
[1742150866900,0.01867616,83932.0,83929.0,0.202549]
[1742150867085,0.01867616,83932.0,83931.0,0.202546]
[1742150867485,0.01867616,83932.0,83931.0,0.21708685]
[1742150868400,0.01867616,83932.0,83931.0,0.22108685]
[1742150868785,0.01867616,83932.0,83931.0,0.20917285]
[1742150868985,0.01867616,83932.0,83931.0,0.22108685]
[1742150869664,0.03059016,83932.0,83931.0,0.004]
[1742150872064,0.01867616,83932.0,83931.0,0.004]
[1742150872317,0.01867616,83932.0,83931.0,0.015914]
[1742150873145,0.01867616,83932.0,83931.0,0.096114]
[1742150874178,0.02178349,83932.0,83931.0,0.096114]
[1742150874387,0.02178349,83932.0,83931.0,0.015914]
[1742150874847,0.02178349,83932.0,83931.0,0.004]
[1742150875053,0.03369749,83932.0,83931.0,0.004]
[1742150875388,0.02178349,83932.0,83931.0,0.004]
[1742150880366,0.02178349,83932.0,83931.0,0.015914]
[1742150880796,0.01867616,83932.0,83931.0,0.015914]
[1742150881001,0.02240153,83932.0,83931.0,0.015914]
[1742150881430,0.22494553,83932.0,83931.0,0.004]
[1742150881848,0.02240153,83932.0,83931.0,0.004]
[1742150884595,0.02240153,83932.0,83931.0,0.015914]
[1742150884928,0.01867616,83932.0,83931.0,0.004]
[1742150885877,0.01867616,83932.0,83931.0,0.015914]
[1742150886074,0.02240228,83932.0,83931.0,0.015914]
[1742150886286,0.02240228,83932.0,83931.0,0.004]
[1742150887663,0.02240228,83932.0,83931.0,0.015914]
[1742150887888,0.02240228,83932.0,83931.0,0.095814]
[1742150888111,0.01867616,83932.0,83931.0,0.11035485]
[1742150890851,0.01867616,83932.0,83931.0,0.15605485]
[1742150895572,0.01901476,83932.0,83931.0,0.15605485]
[1742150902992,0.01901476,83932.0,83931.0,0.03045485]
[1742150903227,0.22155876,83932.0,83931.0,0.004]
[1742150903628,0.22529547,83932.0,83931.0,0.004]
[1742150906082,0.02275147,83932.0,83931.0,0.015914]
[1742150906260,0.01901476,83932.0,83931.0,0.015914]
[1742150906427,0.02212531,83932.0,83931.0,0.015914]
[1742150906628,0.02212531,83932.0,83931.0,0.004]
[1742150908953,0.03403931,83932.0,83931.0,0.004]
[1742150912462,0.02212531,83932.0,83931.0,0.004]
[1742150912798,0.02212531,83932.0,83931.0,0.015914]
[1742150913545,0.02212531,83932.0,83931.0,0.004]
[1742150914455,0.02212531,83932.0,83931.0,0.015914]
[1742150914654,0.01901476,83932.0,83931.0,0.015914]
[1742150914878,0.01901476,83932.0,83931.0,0.03045485]
[1742150916303,0.02211885,83932.0,83931.0,0.03045485]
[1742150920479,0.01901476,83932.0,83931.0,0.03045485]
[1742150921467,0.02211885,83932.0,83931.0,0.01854085]
[1742150921839,0.02211885,83932.0,83931.0,0.03045485]
[1742150926871,0.02211885,83932.0,83931.0,0.01854085]
[1742150927074,0.02211885,83932.0,83931.0,0.004]
[1742150927273,0.03522707,83932.0,83931.0,0.004]
[1742150927457,0.03403285,83932.0,83931.0,0.004]
[1742150928944,0.03522707,83932.0,83931.0,0.004]
[1742150929150,0.13845669,83932.0,83931.0,0.004]
[1742150929549,0.13965091,83932.0,83931.0,0.004]
[1742150929940,0.011915,83927.0,83926.0,0.0001693]
[1742150930374,0.20627751,83927.0,83926.0,0.0001693]
[1742150932456,0.22495538,83927.0,83926.0,0.0011693]
[1742150933366,0.2261496,83927.0,83926.0,0.0011693]
[1742150933557,0.20747173,83927.0,83926.0,0.0011693]
[1742150935400,0.20747173,83927.0,83926.0,0.0001693]
[1742150936000,0.28267173,83927.0,83926.0,0.0001693]
[1742150936160,0.28147751,83927.0,83926.0,0.0001693]
[1742150936719,0.30215624,83927.0,83926.0,0.0001693]
[1742150936896,0.30015624,83927.0,83926.0,0.0001693]
[1742150937296,0.30115624,83927.0,83926.0,0.0001693]
[1742150937872,0.71675624,83927.0,83926.0,0.0001693]
[1742150938076,0.73900514,83927.0,83926.0,0.0001693]
[1742150938278,0.64512641,83927.0,83926.0,0.0001693]
[1742150939315,0.44257041,83927.0,83926.0,0.0001693]
[1742150939770,0.43223651,83927.0,83926.0,0.0001693]
[1742150940354,0.43123651,83927.0,83926.0,0.0001693]
[1742150940929,0.43123651,83927.0,83926.0,0.0011693]
[1742150941334,0.50823651,83927.0,83926.0,0.0011693]
[1742150941547,0.55603651,83927.0,83926.0,0.0011693]
[1742150942429,0.55603651,83927.0,83926.0,0.0001693]
[1742150942829,0.43323651,83927.0,83926.0,0.0001693]
[1742150943029,0.45191517,83927.0,83926.0,0.0001693]
[1742150945553,0.44991517,83927.0,83926.0,0.0001693]
[1742150945754,0.45091517,83927.0,83926.0,0.0001693]
[1742150946527,0.43800017,83927.0,83926.0,0.0001693]
[1742150946731,0.43900017,83927.0,83926.0,0.01471015]
[1742150947235,0.45091517,83927.0,83926.0,0.0001693]
[1742150948658,0.43223651,83927.0,83926.0,0.0001693]
[1742150948842,0.43123651,83927.0,83926.0,0.0001693]
[1742150949206,0.42032151,83927.0,83926.0,0.0001693]
[1742150949663,0.00372151,83927.0,83926.0,0.0001693]
[1742150950071,0.00372151,83927.0,83926.0,0.0021693]
[1742150950486,0.00372151,83927.0,83926.0,0.02862515]
[1742150950840,0.0003386,83932.0,83929.0,0.011914]
[1742150951226,0.0030921,83931.0,83929.0,0.011914]
[1742150951424,0.0030921,83931.0,83930.0,0.326649]
[1742150951829,0.0003386,83932.0,83930.0,0.326649]
[1742150952048,0.01867552,83931.0,83930.0,0.326649]
[1742150952261,0.02176762,83931.0,83930.0,0.321649]
[1742150952843,0.01867552,83931.0,83930.0,0.321649]
[1742150953749,0.01867552,83931.0,83930.0,0.323649]
[1742150954388,0.01867552,83931.0,83930.0,0.199549]
[1742150955024,0.02177702,83931.0,83930.0,0.199549]
[1742150955168,0.02177702,83931.0,83930.0,0.002]
[1742150955369,0.03369102,83931.0,83930.0,0.002]
[1742150956633,0.02177702,83931.0,83930.0,0.002]
[1742150957009,0.0031015,83931.0,83930.0,0.002]
[1742150957425,0.0150155,83931.0,83930.0,0.002]
[1742150960338,0.03369203,83931.0,83930.0,0.002]
[1742150961381,0.02177803,83931.0,83930.0,0.002]
[1742150964699,0.02177803,83931.0,83930.0,0.0021692]
[1742150967965,0.03369203,83931.0,83930.0,0.0021692]
[1742150969378,0.03369203,83931.0,83930.0,0.0001692]
[1742150970790,0.03369203,83931.0,83930.0,0.0021692]
[1742150971192,0.03369203,83931.0,83930.0,0.0001692]
[1742150971621,0.03369203,83931.0,83930.0,0.0021692]
[1742150973055,0.08388625,83931.0,83930.0,0.0021692]
[1742150973258,0.06520972,83931.0,83930.0,0.0021692]
[1742150973459,0.14250972,83931.0,83930.0,0.0021692]
[1742150973839,0.14250972,83931.0,83930.0,0.0001692]
[1742150974293,0.16654276,83931.0,83930.0,0.0001692]
[1742150975005,0.18882941,83931.0,83930.0,0.0001692]
[1742150975214,0.19282941,83931.0,83930.0,0.0001692]
[1742150975422,0.279856,83927.0,83926.0,5e-07]
[1742150975644,0.202622,83900.0,83895.0,0.00910933]
[1742150976086,0.00370522,83899.0,83896.0,0.190712]
[1742150976298,0.00370522,83899.0,83898.0,0.011919]
[1742150976518,0.190689,83907.0,83902.0,0.011918]
[1742150976720,0.011917,83909.0,83904.0,0.0765]
[1742150976922,0.00370522,83906.0,83904.0,0.0765]
[1742150977222,0.00370522,83905.0,83904.0,0.27911]
[1742150977447,0.01868108,83906.0,83905.0,0.011918]
[1742150977862,6.358e-05,83907.0,83906.0,0.190689]
[1742150978483,6.358e-05,83907.0,83906.0,0.202607]
[1742150979066,6.358e-05,83907.0,83905.0,0.015918]
[1742150979434,6.358e-05,83907.0,83905.0,0.004]
[1742150980691,6.358e-05,83907.0,83906.0,0.02645885]
[1742150980893,6.358e-05,83907.0,83906.0,0.07305054]
[1742150981124,6.358e-05,83907.0,83906.0,1.57485885]
[1742150982541,6.358e-05,83907.0,83906.0,0.07485885]
[1742150983968,0.01874341,83907.0,83906.0,0.07485885]
[1742150986933,0.01874341,83907.0,83906.0,1.57485885]
[1742150987464,0.01874341,83907.0,83906.0,0.07485885]
[1742150987895,0.01874341,83907.0,83906.0,0.3760505]
[1742150988100,0.01874341,83907.0,83906.0,0.45145885]
[1742150990230,6.358e-05,83907.0,83906.0,0.44845885]
[1742150990431,0.00040218,83907.0,83906.0,0.45345885]
[1742150990931,0.00040218,83907.0,83906.0,0.44845885]
[1742150991330,0.00040218,83907.0,83906.0,0.45445885]
[1742150994800,0.00040218,83907.0,83906.0,0.46361725]
[1742150997667,0.00040218,83907.0,83906.0,1.96361725]
[1742151002758,0.00040218,83907.0,83906.0,1.95761725]
[1742151003187,0.00040218,83907.0,83906.0,1.96361725]
[1742151012450,0.00040218,83907.0,83906.0,0.017918]
[1742151012899,0.00040218,83907.0,83906.0,0.153758]
[1742151013102,0.00040218,83907.0,83906.0,0.46829885]
[1742151013309,0.00040218,83907.0,83906.0,0.46229885]
[1742151013729,0.00040218,83907.0,83906.0,0.46829885]
[1742151015344,0.01908106,83907.0,83906.0,0.46829885]
[1742151017896,0.01908106,83907.0,83906.0,1.96829885]
[1742151021126,0.00040218,83907.0,83906.0,2.04629885]
[1742151022594,0.00040218,83907.0,83906.0,2.09289885]
[1742151022840,0.00040218,83907.0,83906.0,2.08689885]
[1742151023256,0.00040218,83907.0,83906.0,2.09289885]
[1742151023629,0.00040218,83907.0,83906.0,2.08689885]
[1742151024000,1.8e-07,83907.0,83906.0,2.50459885]
[1742151024205,1.8e-07,83907.0,83906.0,2.5418512]
[1742151024614,1.8e-07,83907.0,83906.0,2.66642623]
[1742151024821,1.8e-07,83907.0,83906.0,2.71642623]
[1742151025131,0.01867566,83928.0,83927.0,0.51709685]
[1742151025354,6.6e-07,83932.0,83931.0,0.3]
[1742151025566,0.1287,83965.0,83948.0,0.011912]
[1742151025830,0.1287,83965.0,83948.0,1.85272685]
[1742151027047,0.02010798,83949.0,83948.0,1.85272685]
[1742151027263,0.02010798,83949.0,83948.0,2.15272685]
[1742151027655,9.8e-07,83949.0,83948.0,2.18186722]
[1742151027902,9.8e-07,83949.0,83948.0,2.75002359]
[1742151028058,9.8e-07,83949.0,83948.0,2.86959862]
[1742151028440,9.8e-07,83949.0,83948.0,2.86459862]
[1742151028644,9.8e-07,83949.0,83948.0,2.91459862]
[1742151030004,9.8e-07,83949.0,83948.0,2.91959862]
[1742151030351,9.8e-07,83949.0,83948.0,2.91459862]
[1742151030787,6e-07,83991.0,83990.0,0.011906]
[1742151031009,4e-07,83997.0,83996.0,0.311905]
[1742151031213,4e-07,83997.0,83996.0,0.32644585]
[1742151031389,0.00041224,83997.0,83996.0,0.32644585]
[1742151031989,0.00041224,83997.0,83996.0,0.02644585]
[1742151032926,0.00041224,83997.0,83996.0,0.02763618]
[1742151033291,0.00041224,83997.0,83996.0,0.04177028]
[1742151035746,0.00041224,83997.0,83996.0,0.34057995]
[1742151036050,0.00041224,83997.0,83996.0,0.47625995]
[1742151036346,0.00041224,83997.0,83996.0,0.47125995]
[1742151036548,0.00041224,83997.0,83996.0,0.47725995]
[1742151036748,0.00041224,83997.0,83996.0,0.66774495]
[1742151037979,0.00041224,83997.0,83996.0,0.53223405]
[1742151038154,0.00041224,83997.0,83996.0,0.65869995]
[1742151041409,0.00041224,83997.0,83996.0,0.22309995]
[1742151041612,0.00041224,83997.0,83996.0,0.35861995]
[1742151042885,0.00041224,83997.0,83996.0,0.22309995]
[1742151043089,0.00041224,83997.0,83996.0,0.21709995]
[1742151043359,0.00041224,83997.0,83996.0,0.0001691]
[1742151043568,0.00041224,83997.0,83996.0,0.0041691]
[1742151043778,0.01678317,83997.0,83996.0,0.0041691]
[1742151044007,0.01231724,83997.0,83996.0,0.0041691]
[1742151044203,0.01678119,83997.0,83996.0,0.0041691]
[1742151044424,0.01678119,83997.0,83996.0,0.0001691]
[1742151044763,0.00487619,83997.0,83996.0,0.0150741]
[1742151044966,0.00487619,83997.0,83996.0,0.32961495]
[1742151045171,0.00041224,83997.0,83996.0,0.32961495]
[1742151045556,0.00041224,83997.0,83996.0,1.82961495]
[1742151046117,0.00041224,83997.0,83996.0,1.82661495]
[1742151046462,0.00041224,83997.0,83996.0,1.83161495]
[1742151048069,0.20279924,83997.0,83996.0,0.0051691]
[1742151048283,0.00041224,83997.0,83996.0,0.0051691]
[1742151048485,0.00487619,83997.0,83996.0,0.0170741]
[1742151048689,0.00041224,83997.0,83996.0,0.0170741]
[1742151048898,0.00487619,83997.0,83996.0,0.0170741]
[1742151049056,0.00041224,83997.0,83996.0,0.0120741]
[1742151049256,0.02353628,83997.0,83996.0,0.0120741]
[1742151049478,0.01907233,83997.0,83996.0,0.0150741]
[1742151049679,0.02353628,83997.0,83996.0,0.02961495]
[1742151050026,0.03544128,83997.0,83996.0,0.0031691]
[1742151050230,0.03097733,83997.0,83996.0,0.0031691]
[1742151050439,0.00487619,83997.0,83996.0,0.0031691]
[1742151050642,0.01678119,83997.0,83996.0,0.0031691]
[1742151051489,0.03894011,83997.0,83996.0,0.0031691]
[1742151051688,0.11764011,83997.0,83996.0,0.0031691]
[1742151051929,0.41883433,83997.0,83996.0,0.0031691]
[1742151052120,0.42981028,83997.0,83996.0,0.0031691]
[1742151052495,0.42981028,83997.0,83996.0,0.0001691]
[1742151052705,0.41764011,83997.0,83996.0,0.0001691]
[1742151053332,0.55396011,83997.0,83996.0,0.0001691]
[1742151053533,0.57262472,83997.0,83996.0,0.0001691]
[1742151054288,0.98822472,83997.0,83996.0,1e-07]
[1742151055557,1.08692452,83997.0,83996.0,1e-07]
[1742151055964,1.08692452,83997.0,83940.0,1.70722127]
[1742151055965,0.202491,83954.0,83953.0,0.756]
[1742151056180,0.190586,83952.0,83944.0,0.011912]
[1742151056377,0.202514,83945.0,83942.0,0.01454085]
[1742151056612,0.011912,83948.0,83942.0,0.011912]
[1742151056797,0.22116849,83951.0,83945.0,0.02645285]
[1742151057004,0.011911,83950.0,83944.0,0.202513]
[1742151057300,0.202498,83951.0,83941.0,0.2364]
[1742151057301,0.011912,83943.0,83941.0,0.2364]
[1742151057420,0.011912,83942.0,83940.0,1.5]
[1742151057625,0.011912,83944.0,83939.0,0.011913]
[1742151057836,0.00442417,83943.0,83940.0,0.00010798]
[1742151058262,0.00442417,83943.0,83940.0,0.01464883]
[1742151058476,0.00442417,83943.0,83942.0,0.004]
[1742151058690,0.202508,83947.0,83942.0,0.004]
[1742151058932,0.00442417,83943.0,83942.0,0.004]
[1742151059249,0.202508,83947.0,83942.0,0.004]
[1742151059460,0.00442417,83943.0,83942.0,0.004]
[1742151059663,0.202508,83947.0,83942.0,0.004]
[1742151059871,0.02662743,83943.0,83941.0,0.202521]
[1742151060074,0.04087549,83943.0,83941.0,0.202521]
[1742151060294,0.04187549,83943.0,83942.0,0.011912]
[1742151060736,0.02220326,83943.0,83942.0,0.011912]
[1742151060939,0.02220326,83943.0,83942.0,0.02845285]
[1742151061111,0.02220326,83943.0,83942.0,0.32845285]
[1742151061544,0.02220326,83943.0,83942.0,0.32662195]
[1742151062096,0.02220326,83943.0,83942.0,0.02662195]
[1742151062297,0.001,83943.0,83942.0,0.02662195]
[1742151063195,0.001,83943.0,83942.0,0.01470995]
[1742151063408,0.001,83943.0,83942.0,0.02662195]
[1742151064039,0.202504,83949.0,83943.0,0.20514585]
[1742151064480,0.202507,83948.0,83943.0,0.20514585]
[1742151064672,0.202502,83950.0,83944.0,0.202513]
[1742151064871,0.011911,83949.0,83943.0,0.01454085]
[1742151065073,0.011912,83947.0,83943.0,0.01454085]
[1742151065284,0.011912,83947.0,83943.0,0.01854085]
[1742151065641,0.20251,83947.0,83943.0,0.01854085]
[1742151065843,0.190603,83944.0,83943.0,0.004]
[1742151066043,0.20370922,83944.0,83943.0,0.004]
[1742151066272,0.202515,83944.0,83943.0,0.004]
[1742151066643,0.011912,83943.0,83942.0,0.0001691]
[1742151068113,0.01310622,83943.0,83942.0,0.0001691]
[1742151068493,0.01510622,83943.0,83942.0,0.0001691]
[1742151068746,0.51350622,83943.0,83942.0,0.0001691]
[1742151069078,0.812312,83943.0,83942.0,0.0001691]
[1742151069994,0.83098976,83943.0,83942.0,0.0001691]
[1742151070413,0.83098976,83943.0,83940.0,8e-08]
[1742151070414,0.016913,83941.0,83940.0,8e-08]
[1742151070609,0.45518722,83941.0,83940.0,8e-08]
[1742151070763,0.453993,83941.0,83940.0,8e-08]
[1742151071172,0.5039928,83941.0,83940.0,8e-08]